bitfinex-derivatives/quotes_ETHF0:USTF0_20250331
["timestamp","ask_amount","ask_price","bid_price","bid_amount"]
[1743413670572,3.982,1786.8,1786.7,1.11947]
[1743413670778,1.11935,1786.9,1786.8,1.11939]
[1743413670981,5.45,1787.0,1786.9,1.11934]
[1743413671178,5.72615,1787.1,1787.0,1.11928]
[1743413671179,3.2078,1787.1,1787.0,1.11928]
[1743413671378,5.451,1787.3,1787.2,1.11915]
[1743413671876,1.469,1787.3,1787.2,1.11915]
[1743413672081,5.83884607,1787.4,1787.3,1.11909]
[1743413672082,3.21619607,1787.4,1787.3,1.11909]
[1743413672879,3.21619607,1787.4,1787.1,2.5782]
[1743413673183,3.2078,1787.2,1787.1,1.11922]
[1743413674281,4.32698,1787.2,1787.0,2.64263]
[1743413674484,1.4898,1787.1,1787.0,2.64263]
[1743413675089,2.60902,1787.1,1787.0,1.5234]
[1743413675275,1.11928,1787.0,1786.9,1.11929]
[1743413675478,2.63178,1787.0,1786.8,1.452]
[1743413675693,5.83958,1787.0,1786.8,2.57135]
[1743413675985,5.83958,1787.0,1786.9,1.11934]
[1743413676186,1.5125,1787.0,1786.9,1.11934]
[1743413676782,3.2078,1787.2,1786.8,1.452]
[1743413676992,8.7063,1787.2,1787.0,1.11925]
[1743413677179,8.7063,1787.2,1786.8,1.452]
[1743413677484,9.82545,1787.2,1787.0,1.11924]
[1743413677780,8.7063,1787.2,1786.9,1.11929]
[1743413677987,8.7063,1787.2,1786.9,1.4632]
[1743413678180,8.7063,1787.2,1787.1,1.11922]
[1743413678377,9.82545,1787.2,1787.1,1.11922]
[1743413678779,8.7063,1787.2,1786.9,4.26155]
[1743413679078,8.7063,1787.2,1787.1,1.11922]
[1743413679278,3.2078,1787.2,1787.1,1.11922]
[1743413679478,2.62725607,1787.4,1787.3,1.11909]
[1743413679690,1.50819607,1787.4,1787.3,1.11909]
[1743413679888,6.61322607,1787.4,1787.3,1.11909]
[1743413680685,6.61326607,1787.4,1787.3,1.11909]
[1743413680889,5.49419607,1787.4,1787.3,1.11909]
[1743413681078,6.61322607,1787.4,1787.3,1.11909]
[1743413681282,0.00839607,1787.4,1787.3,1.11909]
[1743413681685,0.00839607,1787.4,1787.2,1.11913]
[1743413681984,1.44899607,1787.4,1787.2,1.4181]
[1743413682191,2.56804607,1787.4,1787.3,1.11909]
[1743413682488,1.44899607,1787.4,1787.3,1.11909]
[1743413682687,0.00839607,1787.4,1787.3,1.11909]
[1743413683588,1.12742607,1787.4,1787.3,1.11909]
[1743413683793,1.11922,1787.1,1787.0,4.32704]
[1743413683998,1.11922,1787.1,1787.0,1.11924]
[1743413684387,1.4478,1787.2,1786.8,4.6804]
[1743413684584,1.4478,1787.2,1787.0,1.11925]
[1743413684788,1.4478,1787.2,1787.1,1.11922]
[1743413684989,3.98639607,1787.4,1787.3,1.11909]
[1743413685288,3.98639607,1787.4,1787.2,1.11913]
[1743413685289,1.11912,1787.3,1787.2,1.11913]
[1743413685487,1.11915,1787.2,1787.1,1.4726]
[1743413685891,2.56695,1787.2,1787.1,1.4726]
[1743413686482,7.1798,1787.3,1787.1,1.4726]
[1743413686688,1.4478,1787.2,1787.1,2.59181]
[1743413686890,2.56695,1787.2,1787.1,2.59181]
[1743413687395,2.56695,1787.2,1787.1,1.4726]
[1743413687604,2.56695,1787.2,1787.1,2.59182]
[1743413687993,0.00839607,1787.4,1787.1,1.4726]
[1743413688200,0.00839607,1787.4,1787.3,1.11909]
[1743413688898,1.12742607,1787.4,1787.3,1.11909]
[1743413689394,1.11912,1787.3,1787.2,1.1191]
[1743413689599,1.11921,1787.2,1787.1,1.11919]
[1743413689793,2.54001,1787.2,1787.1,2.55949]
[1743413689994,5.3898,1787.2,1786.7,3.0009]
[1743413690194,4.32713,1787.0,1786.6,3.2078]
[1743413690497,1.11939,1786.9,1786.8,1.11938]
[1743413690694,1.11938,1786.9,1786.8,1.11937]
[1743413690889,1.1194,1786.8,1786.7,2.55662]
[1743413691092,4.7437,1787.0,1786.7,1.4372]
[1743413691299,1.1194,1786.8,1786.7,1.4372]
[1743413691692,1.11953,1786.6,1786.5,0.00839607]
[1743413691894,1.11953,1786.6,1786.5,1.44559607]
[1743413692200,1.11953,1786.6,1786.5,0.00839607]
[1743413692699,1.5359,1786.6,1786.5,1.12798607]
[1743413692897,1.11953,1786.6,1786.5,1.12796607]
[1743413693203,1.11944,1786.8,1786.7,1.11945]
[1743413693397,1.11947,1786.7,1786.6,2.5308]
[1743413693693,1.11947,1786.8,1786.7,1.11947]
[1743413693900,1.4388,1786.9,1786.7,1.4113]
[1743413694101,1.11938,1786.9,1786.8,1.1194]
[1743413694303,1.11939,1786.9,1786.8,1.11938]
[1743413694497,1.1194,1786.8,1786.7,2.53073]
[1743413694698,1.11938,1786.9,1786.8,1.11936]
[1743413695195,1.11938,1786.9,1786.7,1.4113]
[1743413695395,1.1194,1786.8,1786.7,2.53072]
[1743413695806,4.32712,1787.0,1786.9,1.11934]
[1743413696001,1.11937,1786.9,1786.8,1.11935]
[1743413697004,2.9861,1787.3,1786.7,3.2078]
[1743413697306,6.9362,1787.3,1787.0,2.7981]
[1743413697506,5.4491,1787.3,1787.2,1.11915]
[1743413698199,6.56819,1787.3,1787.2,1.11915]
[1743413698401,0.00839607,1787.4,1787.3,1.11909]
[1743413698904,1.11911,1787.3,1787.2,1.1191]
[1743413699103,1.12744607,1787.4,1787.3,1.11909]
[1743413699604,1.11915,1787.3,1787.2,1.11912]
[1743413699906,2.55285,1787.3,1787.2,1.11912]
[1743413700103,1.11917,1787.2,1787.1,1.11917]
[1743413700305,2.55284,1787.3,1787.2,1.11915]
[1743413700501,3.21619607,1787.4,1787.0,1.5069]
[1743413700698,2.79786,1787.3,1786.8,1.4443]
[1743413700898,4.32702,1787.2,1786.8,4.24281]
[1743413701103,2.55293,1787.1,1787.0,1.11928]
[1743413701308,1.11931,1787.0,1786.9,1.11929]
[1743413701908,2.55292,1787.1,1787.0,1.11928]
[1743413702106,1.11922,1787.1,1787.0,1.11928]
[1743413702500,1.11934,1787.0,1786.9,1.11931]
[1743413702702,1.11928,1787.0,1786.9,1.11931]
[1743413703211,1.11926,1787.1,1787.0,1.11928]
[1743413703413,4.6949,1787.2,1787.1,1.11922]
[1743413703611,3.2078,1787.2,1787.1,1.11922]
[1743413703800,4.33522607,1787.4,1787.3,1.11909]
[1743413704000,4.33522607,1787.4,1787.1,3.91723]
[1743413704001,1.11909,1787.3,1787.2,2.59683]
[1743413704306,4.33522607,1787.4,1787.3,1.11909]
[1743413704609,0.00839607,1787.4,1787.3,1.11909]
[1743413705604,0.00839607,1787.4,1787.3,4.32689]
[1743413705808,5.86068,1787.8,1787.7,1.11884]
[1743413706403,1.11884,1787.7,1787.6,1.4069]
[1743413706605,1.4641,1787.7,1787.6,1.1189]
[1743413706806,1.11888,1787.7,1787.6,1.1189]
[1743413707511,2.58298,1787.7,1787.6,1.1189]
[1743413707713,1.11888,1787.7,1787.6,1.1189]
[1743413707906,1.1189,1787.7,1787.6,1.11888]
[1743413708108,1.1189,1787.7,1787.6,1.11887]
[1743413708307,2.583,1787.7,1787.6,1.11887]
[1743413708808,1.11884,1787.7,1787.6,1.11887]
[1743413709113,1.1189,1787.6,1787.5,0.00839607]
[1743413709316,5.8408,1787.6,1787.5,0.00839607]
[1743413710708,1.5141,1787.6,1787.5,1.12736607]
[1743413711110,1.1189,1787.6,1787.5,1.12732607]
[1743413711307,1.1189,1787.6,1787.5,0.00839607]
[1743413711806,3.2078,1787.6,1787.5,1.12730607]
[1743413712008,4.3267,1787.6,1787.5,1.12730607]
[1743413712208,1.1189,1787.6,1787.5,1.12730607]
[1743413712513,1.5141,1787.7,1787.6,1.1189]
[1743413712514,2.63297,1787.7,1787.6,1.1189]
[1743413712816,8.63629607,1787.8,1787.7,1.11884]
[1743413713006,0.00839607,1787.8,1787.7,1.11884]
[1743413713505,4.32638,1788.2,1788.1,1.11859]
[1743413713803,5.78957,1788.2,1788.1,1.11859]
[1743413714512,1.11859,1788.1,1788.0,2.51352]
[1743413714813,1.1189,1787.6,1787.2,9.57957]
[1743413715003,4.3267,1787.6,1787.4,2.51388]
[1743413715610,5.8659,1787.6,1787.3,1.11904]
[1743413715908,1.11909,1787.3,1787.2,1.3949]
[1743413716114,1.11915,1787.2,1787.1,1.11917]
[1743413716314,1.5392,1787.2,1787.1,1.11917]
[1743413716511,7.1948,1787.5,1787.4,1.11903]
[1743413716708,3.2078,1787.5,1787.4,1.11903]
[1743413717013,0.00839607,1787.6,1787.5,1.11892]
[1743413718517,0.00839607,1787.6,1787.5,2.59612]
[1743413718719,0.00839607,1787.6,1787.5,5.80392]
[1743413719315,3.2078,1787.9,1787.8,1.11878]
[1743413719515,4.32639,1788.1,1788.0,1.11865]
[1743413719718,3.2078,1788.1,1787.9,1.4772]
[1743413720015,1.436,1788.0,1787.9,2.59589]
[1743413720215,3.2078,1788.1,1788.0,1.11865]
[1743413720415,1.436,1788.3,1788.0,4.685]
[1743413720614,1.436,1788.3,1788.2,1.11853]
[1743413720816,1.44439607,1788.3,1788.2,1.11853]
[1743413721012,4.65219607,1788.3,1788.0,2.59582]
[1743413721213,4.32639,1788.1,1788.0,2.59582]
[1743413721514,3.2078,1788.1,1787.7,6.0049]
[1743413721710,1.11865,1788.1,1788.0,1.11865]
[1743413721912,1.11872,1787.9,1787.8,2.65145]
[1743413722115,1.11872,1787.9,1787.8,1.5327]
[1743413722419,1.11872,1787.9,1787.8,2.65148]
[1743413722620,4.6339,1788.1,1787.9,1.11866]
[1743413722820,4.6339,1788.1,1788.0,1.11865]
[1743413723206,1.4261,1788.1,1788.0,1.11865]
[1743413723413,3.21619607,1788.3,1788.2,1.11853]
[1743413723619,2.64436607,1788.3,1788.2,1.11853]
[1743413724015,1.11853,1788.2,1788.1,2.50608]
[1743413724215,2.63603,1788.2,1788.1,2.50608]
[1743413724411,3.21619607,1788.3,1788.1,1.3875]
[1743413724615,2.64436607,1788.3,1788.2,2.50603]
[1743413724816,5.85216607,1788.3,1788.2,1.3875]
[1743413725216,5.85216607,1788.3,1788.2,2.50603]
[1743413725922,1.52589607,1788.3,1788.2,2.50603]
[1743413726127,5.85216607,1788.3,1788.2,1.3875]
[1743413726623,5.85216607,1788.3,1788.2,2.50603]
[1743413727518,4.73369607,1788.3,1788.2,2.50603]
[1743413727720,1.52589607,1788.3,1788.2,2.50603]
[1743413727920,0.00839607,1788.3,1788.2,2.50603]
[1743413728113,1.12686607,1788.3,1788.2,2.50603]
[1743413728513,4.33466607,1788.3,1788.2,1.3875]
[1743413728714,1.11865,1788.1,1788.0,2.55005]
[1743413729520,6.00428,1788.1,1787.6,1.4461]
[1743413729721,1.11882,1787.8,1787.7,2.54984]
[1743413730216,2.63922,1787.8,1787.7,2.54984]
[1743413730621,1.1189,1787.6,1787.5,1.11892]
[1743413730926,1.1189,1787.6,1787.5,2.54997]
[1743413731125,1.1189,1787.6,1787.5,1.431]
[1743413731326,2.6393,1787.6,1787.5,2.54997]
[1743413731825,5.10678,1787.8,1787.7,1.11884]
[1743413732021,4.07957,1788.0,1787.8,1.11878]
[1743413732223,1.5204,1788.1,1788.0,1.11865]
[1743413732418,4.32633,1788.2,1788.1,1.11859]
[1743413732633,4.7282,1788.2,1787.9,5.64539]
[1743413732820,5.84679,1788.2,1788.1,1.11859]
[1743413733024,1.11865,1788.0,1787.9,3.96727]
[1743413733318,1.11864,1788.1,1788.0,1.11863]
[1743413733523,2.60054,1788.1,1788.0,2.56953]
[1743413733831,1.4819,1788.1,1788.0,2.56953]
[1743413734023,2.60049,1788.1,1788.0,1.4509]
[1743413734225,1.11877,1787.9,1787.6,2.79724]
[1743413734526,5.828,1788.0,1787.8,1.4509]
[1743413734720,1.4819,1787.9,1787.8,2.56968]
[1743413734921,1.5015,1788.0,1787.9,1.11872]
[1743413735129,2.62015,1788.0,1787.9,2.56962]
[1743413736126,2.62015,1788.0,1787.9,1.4509]
[1743413736326,5.82795,1788.0,1787.9,2.56962]
[1743413737031,5.82795,1788.0,1787.9,1.4509]
[1743413737421,4.7093,1788.0,1787.7,1.1188]
[1743413737620,1.11882,1787.8,1787.7,1.1188]
[1743413737817,1.11884,1787.7,1787.6,2.58263]
[1743413738029,2.55714,1787.7,1787.6,2.58263]
[1743413738926,2.64132,1787.9,1787.8,1.11878]
[1743413739323,1.11896,1787.6,1787.5,1.11892]
[1743413739528,6.00484,1787.8,1787.4,3.2078]
[1743413739724,1.11897,1787.5,1787.4,4.32677]
[1743413740223,1.11897,1787.5,1787.4,5.84917]
[1743413740827,1.11896,1787.6,1787.5,1.11892]
[1743413741129,2.61596,1787.6,1787.5,2.64137]
[1743413741628,2.61596,1787.6,1787.5,1.5224]
[1743413741934,2.61596,1787.6,1787.5,2.64137]
[1743413742728,7.2018,1787.8,1787.7,1.11884]
[1743413742932,4.7093,1788.0,1787.5,1.5224]
[1743413743229,1.4993,1788.2,1788.1,1.11859]
[1743413743431,0.00839607,1788.3,1788.2,1.11853]
[1743413743633,0.00839607,1788.3,1788.2,2.61163]
[1743413743931,1.12686607,1788.3,1788.2,2.61163]
[1743413744135,0.00839607,1788.3,1788.2,2.61163]
[1743413744335,1.12686607,1788.3,1788.2,2.61163]
[1743413744531,1.12686607,1788.3,1788.2,1.4931]
[1743413744735,2.62616607,1788.3,1788.2,2.61163]
[1743413745135,2.62616607,1788.3,1788.2,1.4931]
[1743413745542,2.62616607,1788.3,1788.2,2.61163]
[1743413745832,2.62616607,1788.3,1788.2,1.4931]
[1743413746041,1.11859,1788.1,1788.0,2.61582]
[1743413746230,1.11859,1788.1,1788.0,4.09732]
[1743413746537,1.11858,1788.2,1788.1,1.11856]
[1743413746734,2.58268,1788.2,1788.1,1.11856]
[1743413747035,7.46828,1788.2,1787.8,1.11873]
[1743413747234,1.11872,1787.9,1787.8,1.11873]
[1743413747734,1.11882,1787.8,1787.7,1.11879]
[1743413747930,2.53442,1787.8,1787.7,2.60499]
[1743413748928,2.53442,1787.8,1787.7,1.4862]
[1743413749130,1.4156,1787.8,1787.7,1.11884]
[1743413749535,2.53446,1787.8,1787.7,1.11884]
[1743413749734,1.11872,1787.9,1787.7,1.11884]
[1743413749926,6.51531,1788.0,1787.9,1.11872]
[1743413750126,9.72311,1788.0,1787.9,1.11872]
[1743413750636,2.57482,1788.1,1788.0,1.11865]
[1743413750839,2.57482,1788.1,1787.8,4.28309]
[1743413750840,1.11868,1788.0,1787.9,1.11866]
[1743413751040,2.53788,1788.0,1787.9,1.11866]
[1743413751834,1.4192,1788.0,1787.9,1.11866]
[1743413752041,2.57479,1788.1,1788.0,1.11865]
[1743413752230,1.11865,1788.0,1787.9,2.65267]
[1743413752436,2.53785,1788.0,1787.9,4.06927]
[1743413752841,2.53785,1788.0,1787.9,2.9506]
[1743413753141,2.53785,1788.0,1787.9,4.06932]
[1743413753942,2.53785,1788.0,1787.9,1.4166]
[1743413754245,2.53785,1788.0,1787.7,1.1188]
[1743413754246,1.11878,1787.8,1787.7,1.1188]
[1743413754543,1.11878,1787.8,1787.7,2.6119]
[1743413755238,1.11877,1787.9,1787.8,1.11874]
[1743413755434,2.57577,1787.9,1787.8,1.11874]
[1743413756035,1.11878,1787.8,1787.7,2.6119]
[1743413756235,2.57578,1787.8,1787.7,2.6119]
[1743413756539,2.57578,1787.8,1787.7,1.4931]
[1743413757046,1.11901,1787.5,1787.3,0.00839607]
[1743413757245,1.11903,1787.4,1787.3,1.12742607]
[1743413757446,1.11903,1787.4,1787.3,1.12748607]
[1743413758446,2.53273,1787.4,1787.3,2.54788607]
[1743413759244,3.2078,1787.6,1787.3,4.22639607]
[1743413759447,2.53249,1787.8,1787.7,1.11884]
[1743413759638,2.53248,1787.8,1787.7,1.11884]
[1743413760344,2.53248,1787.8,1787.7,2.58384]
[1743413760841,1.11878,1787.8,1787.7,2.58384]
[1743413761040,2.52288,1787.8,1787.7,2.58384]
[1743413761443,2.52288,1787.8,1787.7,1.465]
[1743413762545,8.18009,1787.8,1787.3,0.00839607]
[1743413762748,1.11899,1787.5,1787.4,2.58397]
[1743413762940,1.11891,1787.6,1787.5,1.1189]
[1743413763141,2.65881,1787.6,1787.5,2.59957]
[1743413764747,1.1189,1787.7,1787.6,1.1189]
[1743413765044,2.6588,1787.7,1787.6,1.1189]
[1743413765245,1.1189,1787.6,1787.5,2.59952]
[1743413767444,1.11883,1787.8,1787.7,1.1188]
[1743413767642,1.11883,1787.8,1787.5,7.07521]
[1743413767643,1.4787,1787.8,1787.5,7.07521]
[1743413767843,2.59749,1787.8,1787.7,1.11884]
[1743413768542,1.11889,1787.7,1787.6,1.11885]
[1743413768747,1.4787,1787.8,1787.7,1.11884]
[1743413769352,1.1189,1787.7,1787.6,1.11886]
[1743413769852,6.1081,1788.1,1787.8,1.11878]
[1743413770161,2.58369,1788.1,1788.0,1.11865]
[1743413770451,1.11859,1788.1,1788.0,1.11865]
[1743413771041,1.11865,1788.0,1787.9,1.4399]
[1743413771244,4.32376,1788.0,1787.8,1.11874]
[1743413771446,1.11877,1787.9,1787.8,2.55864]
[1743413771652,2.64577,1787.9,1787.8,2.55864]
[1743413771842,1.5224,1788.0,1787.9,1.11872]
[1743413772046,4.7393,1788.1,1788.0,1.11865]
[1743413772047,5.85789,1788.1,1788.0,1.11865]
[1743413772246,4.32639,1788.1,1788.0,1.11865]
[1743413772451,3.2078,1788.1,1788.0,1.11865]
[1743413772652,0.00839607,1788.3,1788.2,1.11853]
[1743413773059,0.00839607,1788.3,1788.2,2.51353]
[1743413773853,1.11859,1788.2,1788.1,1.11858]
[1743413774047,4.32639,1788.2,1788.1,1.395]
[1743413774243,3.2078,1788.2,1787.8,3.979]
[1743413774449,3.2078,1788.2,1788.0,1.11859]
[1743413774450,3.94853,1788.1,1788.0,1.11859]
[1743413774756,3.94852,1788.1,1788.0,1.11865]
[1743413774958,1.11865,1788.0,1787.9,1.395]
[1743413775158,1.11878,1787.9,1787.8,1.11875]
[1743413775460,1.11878,1787.8,1787.7,2.65639]
[1743413775956,1.11877,1787.9,1787.8,1.11874]
[1743413776153,2.52167,1787.9,1787.8,1.11874]
[1743413776355,1.11878,1787.8,1787.7,2.65639]
[1743413776653,2.52168,1787.8,1787.7,2.65639]
[1743413776852,2.52168,1787.8,1787.6,6.1718]
[1743413776853,1.11884,1787.7,1787.6,1.11886]
[1743413777062,3.2078,1787.8,1787.7,1.11884]
[1743413777357,1.11878,1787.8,1787.7,1.11884]
[1743413778257,1.4029,1787.9,1787.8,1.11878]
[1743413778444,8.30247,1788.0,1787.8,1.11878]
[1743413778648,8.5775,1788.0,1787.9,2.62282]
[1743413778854,3.2078,1788.2,1788.1,1.11859]
[1743413780061,0.00839607,1788.3,1788.2,1.11853]
[1743413780961,23.78532923,1788.8,1788.7,1.11821]
[1743413782468,1.11821,1788.7,1788.6,5.10362607]
[1743413782758,2.55811,1788.7,1788.6,1.12667607]
[1743413784052,4.04461,1788.7,1788.6,1.12667607]
[1743413784561,2.9264,1788.7,1788.6,1.12667607]
[1743413784864,3.21619607,1788.9,1788.8,1.11815]
[1743413785463,3.21619607,1788.9,1788.6,1.12667607]
[1743413785464,1.11821,1788.7,1788.6,0.00839607]
[1743413785663,4.32601,1788.7,1788.6,0.00839607]
[1743413785963,2.79589,1788.5,1788.1,1.11856]
[1743413786265,1.11849,1788.3,1788.2,1.11848]
[1743413786765,1.11849,1788.3,1788.1,1.4731]
[1743413786766,1.11853,1788.2,1788.1,1.4731]
[1743413786966,1.11853,1788.2,1788.1,2.59169]
[1743413787363,1.11859,1788.1,1788.0,0.00839607]
[1743413787568,1.4205,1788.1,1788.0,1.12704607]
[1743413787754,10.1012,1788.4,1788.2,1.11851]
[1743413787960,1.4205,1788.3,1788.2,1.11851]
[1743413788161,3.991,1788.5,1788.4,1.1184]
[1743413788366,3.2078,1788.5,1788.4,1.1184]
[1743413788562,4.32614,1788.5,1788.4,1.1184]
[1743413788768,1.1184,1788.4,1788.3,2.51244]
[1743413789066,1.1184,1788.4,1788.3,1.394]
[1743413789260,2.5389,1788.4,1788.3,1.394]
[1743413789662,2.5389,1788.4,1788.3,2.51247]
[1743413790065,2.5389,1788.4,1788.3,1.394]
[1743413790259,1.11852,1788.3,1788.2,1.11851]
[1743413790460,2.49452,1788.3,1788.2,1.11851]
[1743413790657,1.376,1788.3,1788.2,1.11851]
[1743413790856,1.3764,1788.4,1788.3,1.11847]
[1743413791060,3.2078,1788.5,1788.4,1.1184]
[1743413791254,1.376,1788.6,1788.5,1.11834]
[1743413791661,3.2078,1788.7,1788.6,1.11828]
[1743413791958,3.21619607,1788.9,1788.4,8.23109]
[1743413792159,1.376,1788.8,1788.7,1.11819]
[1743413792469,3.21619607,1788.9,1788.8,1.11815]
[1743413792673,4.59219607,1788.9,1788.8,1.11815]
[1743413792862,5.71028607,1788.9,1788.8,1.11815]
[1743413793062,4.59219607,1788.9,1788.8,1.11815]
[1743413793263,5.71031607,1788.9,1788.8,1.11815]
[1743413793463,1.11821,1788.7,1788.6,2.57233]
[1743413795667,4.59219607,1788.9,1788.6,1.4541]
[1743413795873,3.21619607,1788.9,1788.8,1.11815]
[1743413796571,3.21619607,1788.9,1788.8,2.55355]
[1743413797966,0.00839607,1788.9,1788.8,5.76135]
[1743413798169,3.2078,1789.2,1789.1,1.11796]
[1743413798372,1.11768,1789.6,1789.3,2.79459]
[1743413798569,1.11772,1789.5,1789.4,1.4354]
[1743413798968,1.11762,1789.7,1789.6,1.11761]
[1743413799270,2.58962,1789.7,1789.6,1.11761]
[1743413799576,1.11765,1789.6,1789.5,0.00839607]
[1743413799871,1.11765,1789.6,1789.5,1.12611607]
[1743413800177,1.11765,1789.6,1789.5,0.00839607]
[1743413800370,2.79442,1789.5,1789.1,3.2078]
[1743413800569,1.11788,1789.3,1789.2,1.11787]
[1743413800974,9.00202,1789.5,1788.9,11.43142]
[1743413801178,1.11787,1789.3,1789.2,1.11789]
[1743413801679,1.11787,1789.3,1789.1,4.6422]
[1743413801680,1.1179,1789.2,1789.1,5.76849607]
[1743413802272,1.1179,1789.2,1789.1,0.00839607]
[1743413802672,1.11815,1788.8,1788.7,3.2078]
[1743413803078,1.11815,1788.8,1788.7,4.32601]
[1743413803573,2.51525,1788.8,1788.7,3.2078]
[1743413803779,4.03485,1788.8,1788.7,3.2078]
[1743413803980,4.03485,1788.8,1788.7,4.32601]
[1743413804775,4.03485,1788.8,1788.7,5.80501]
[1743413805877,4.03485,1788.8,1788.7,4.6868]
[1743413806978,4.03485,1788.8,1788.7,5.80501]
[1743413807179,4.03485,1788.8,1788.7,4.6868]
[1743413807990,1.11821,1788.7,1788.6,0.00839607]
[1743413808198,2.64421,1788.7,1788.6,1.12663607]
[1743413809200,1.526,1788.7,1788.6,1.12663607]
[1743413809500,2.64421,1788.7,1788.6,1.12663607]
[1743413809696,1.11821,1788.7,1788.6,1.12663607]
[1743413810497,2.53301,1788.7,1788.6,1.12663607]
[1743413810798,1.4148,1788.7,1788.6,1.12663607]
[1743413811098,2.53301,1788.7,1788.6,1.12663607]
[1743413811790,1.1184,1788.4,1788.3,1.3968]
[1743413811990,1.1184,1788.4,1788.3,2.54842]
[1743413812190,2.5084,1788.5,1788.4,1.1184]
[1743413813996,1.1184,1788.4,1788.3,2.55680607]
[1743413814793,1.1184,1788.4,1788.3,0.00839607]
[1743413814988,3.9745,1788.4,1788.3,0.00839607]
[1743413815299,1.11869,1788.0,1787.8,4.6976]
[1743413815498,2.62762,1787.9,1787.8,5.81638]
[1743413815695,2.62762,1787.9,1787.8,4.32658]
[1743413816798,1.5089,1787.9,1787.8,4.32658]
[1743413816993,1.11861,1788.1,1787.8,3.2078]
[1743413817198,2.62751,1788.1,1788.0,1.11859]
[1743413817396,1.5089,1788.1,1788.0,1.11859]
[1743413818003,2.62749,1788.1,1788.0,1.11859]
[1743413818501,1.5089,1788.1,1788.0,2.54329]
[1743413818702,2.62749,1788.1,1788.0,2.54329]
[1743413818996,2.62749,1788.1,1788.0,1.4247]
[1743413819198,1.11872,1787.9,1787.8,5.75124]
[1743413820198,1.11867,1788.0,1787.8,3.2078]
[1743413820393,2.61362,1787.9,1787.8,4.32653]
[1743413820598,1.11883,1787.8,1787.7,1.11881]
[1743413820897,1.11874,1787.9,1787.8,1.11878]
[1743413821098,1.12713607,1787.9,1787.8,1.11878]
[1743413821303,1.11881,1787.8,1787.7,1.11879]
[1743413821505,2.53321,1787.8,1787.7,1.11879]
[1743413822004,1.11903,1787.5,1787.4,1.11899]
[1743413822900,2.53343,1787.5,1787.4,1.11899]
[1743413823101,2.53337,1787.5,1787.4,1.11899]
[1743413823297,1.11906,1787.4,1787.3,1.11904]
[1743413823497,1.11914,1787.3,1787.2,1.11911]
[1743413824706,1.11911,1787.3,1787.2,1.1191]
[1743413825200,1.11922,1787.1,1787.0,2.56074]
[1743413825402,6.00587,1787.1,1786.8,3.2078]
[1743413825605,1.11942,1786.8,1786.7,1.11941]
[1743413825907,1.11938,1786.9,1786.8,1.11938]
[1743413826301,4.60239607,1786.9,1786.4,4.6286]
[1743413826498,1.11951,1786.7,1786.6,1.11953]
[1743413826704,2.79855,1786.8,1786.4,4.6286]
[1743413826904,1.11959,1786.5,1786.4,5.74821]
[1743413827304,1.4611,1786.7,1786.4,5.74821]
[1743413827305,5.4231,1786.7,1786.4,4.6286]
[1743413827505,5.4231,1786.7,1786.6,1.11953]
[1743413827710,6.54257,1786.7,1786.6,1.11953]
[1743413827903,6.54257,1786.7,1786.4,4.6286]
[1743413828103,3.962,1786.7,1786.2,3.2078]
[1743413828299,2.79916,1786.4,1786.0,3.2078]
[1743413828612,1.11989,1786.1,1785.8,1.4849]
[1743413828809,1.11989,1786.1,1786.0,1.11991]
[1743413829005,1.11989,1786.1,1785.8,1.4849]
[1743413829006,4.3788,1786.3,1786.1,1.11981]
[1743413829208,1.11985,1786.1,1786.0,1.11986]
[1743413829409,1.11991,1786.0,1785.9,1.11993]
[1743413829709,1.11991,1786.0,1785.8,2.60488]
[1743413829901,1.11997,1785.9,1785.8,1.11998]
[1743413830308,1.483,1786.0,1785.9,1.11997]
[1743413830518,1.11984,1786.1,1786.0,1.11991]
[1743413830708,1.12823607,1786.1,1786.0,1.11991]
[1743413830910,2.61123607,1786.1,1785.9,1.11992]
[1743413831305,1.11991,1786.0,1785.9,1.11992]
[1743413831511,3.2078,1786.0,1785.5,4.6699]
[1743413831707,1.12007,1785.8,1785.5,4.6699]
[1743413832017,1.1201,1785.7,1785.6,1.12013]
[1743413832210,3.2078,1785.8,1785.6,1.12015]
[1743413832411,2.60315,1785.7,1785.5,1.12019]
[1743413832910,1.12016,1785.6,1785.5,1.12019]
[1743413833105,2.60314,1785.7,1785.4,1.4441]
[1743413833509,1.1202,1785.6,1785.5,1.12022]
[1743413833710,2.5758,1785.6,1785.5,1.12022]
[1743413834105,1.12022,1785.5,1785.4,2.56434]
[1743413834310,1.4556,1785.6,1785.4,1.4441]
[1743413834509,1.12022,1785.5,1785.4,2.56433]
[1743413834913,1.12022,1785.5,1785.3,4.6422]
[1743413834914,1.12028,1785.4,1785.3,3.2078]
[1743413835109,1.12045,1785.2,1785.1,1.12045]
[1743413835309,1.12047,1785.1,1785.0,3.2078]
[1743413835510,1.513,1785.3,1785.0,3.2078]
[1743413835711,5.505,1785.3,1785.2,1.12041]
[1743413836017,1.12031,1785.4,1785.1,2.80108]
[1743413836221,3.2078,1785.4,1785.0,6.00912]
[1743413836416,5.81012,1785.4,1785.0,6.00912]
[1743413836622,3.2078,1785.6,1785.5,1.12022]
[1743413836825,3.2078,1785.6,1785.2,2.80089]
[1743413837117,5.389,1785.7,1785.5,1.12022]
[1743413837318,1.12022,1785.5,1785.4,1.12022]
[1743413837512,1.12022,1785.5,1784.9,8.81059]
[1743413837513,3.2078,1785.5,1785.0,2.80132]
[1743413837711,3.2078,1785.5,1785.1,3.2078]
[1743413837712,1.482,1785.4,1785.1,3.2078]
[1743413837914,1.12017,1785.6,1785.5,1.12017]